bitfinex-derivatives/quotes_SOLF0:USTF0_20241008
["timestamp","ask_amount","ask_price","bid_price","bid_amount"]
[1728396165487,29.831,145.36,145.32,3.4417]
[1728396165796,2.672,145.37,145.31,0.12502]
[1728396166300,32.81,145.38,145.31,0.12502]
[1728396166693,26.39,145.36,145.31,0.12502]
[1728396168697,1.0,145.37,145.31,0.12502]
[1728396169804,1.0,145.37,145.34,3.4412]
[1728396171298,1.0,145.37,145.31,0.12502]
[1728396171503,1.0,145.37,145.35,3.4411]
[1728396171700,1.0,145.37,145.31,0.12502]
[1728396172191,1.4114,145.39,145.31,0.12502]
[1728396172593,1.4114,145.39,145.35,3.441]
[1728396172798,4.93488689,145.39,145.35,3.441]
[1728396172993,3.4406,145.38,145.35,3.441]
[1728396173309,3.4406,145.38,145.34,3.4412]
[1728396173602,26.39,145.35,145.31,0.12502]
[1728396173807,9.2061,145.34,145.31,0.12502]
[1728396174007,3.4416,145.33,145.31,0.12502]
[1728396174317,12.70257157,145.34,145.31,3.56692]
[1728396174600,3.4416,145.33,145.31,0.12502]
[1728396174798,12.70257157,145.34,145.31,3.56702]
[1728396174995,3.4422,145.31,145.24,6.42]
[1728396175200,26.39,145.33,145.24,6.42]
[1728396175508,26.39,145.33,145.3,3.4422]
[1728396175710,29.8317,145.33,145.3,3.4422]
[1728396175897,12.70257157,145.34,145.24,6.42]
[1728396176096,12.70257157,145.34,145.24,32.81]
[1728396176097,9.2061,145.34,145.24,32.81]
[1728396176296,1.4481,145.34,145.26,26.39]
[1728396176503,1.4481,145.34,145.33,3.4416]
[1728396176697,1.4481,145.34,145.26,26.39]
[1728396177206,3.4416,145.33,145.24,32.81]
[1728396177894,1.4481,145.34,145.24,32.81]
[1728396178607,26.39,145.33,145.24,6.42]
[1728396178799,26.39,145.33,145.22,167.08692918]
[1728396179000,26.39,145.31,145.22,147.11692918]
[1728396179303,26.39,145.31,145.19,26.51502]
[1728396179304,26.39,145.29,145.19,6.54502]
[1728396180012,3.4433,145.26,145.23,3.4438]
[1728396180406,6.42,145.27,145.19,6.54502]
[1728396180602,2.3512,145.3,145.21,26.39]
[1728396180807,6.42,145.29,145.21,26.39]
[1728396181108,2.3512,145.3,145.21,26.39]
[1728396181109,2.3512,145.3,145.29,3.4425]
[1728396181306,29.79593578,145.36,145.23,32.81]
[1728396181505,9.8615,145.34,145.31,3.4419]
[1728396181709,9.8615,145.34,145.25,26.51502]
[1728396182112,6.42,145.34,145.25,26.51502]
[1728396182607,6.42,145.34,145.31,3.442]
[1728396182798,9.8615,145.34,145.25,26.51502]
[1728396183314,80.76,145.35,145.25,26.51502]
[1728396183521,6.44,145.35,145.25,26.51502]
[1728396183808,9.8812,145.35,145.25,26.51502]
[1728396184014,7.6142529,145.36,145.25,26.51502]
[1728396184214,6.44,145.35,145.25,26.51502]
[1728396184410,6.44,145.35,145.25,0.12502]
[1728396184807,6.44,145.35,145.33,3.4415]
[1728396185110,6.44,145.35,145.25,0.12502]
[1728396185311,3.4416,145.33,145.3,3.4421]
[1728396185615,6.44,145.35,145.25,0.12502]
[1728396186427,3.4414,145.34,145.31,3.4419]
[1728396186630,6.44,145.35,145.25,26.51502]
[1728396187419,6.44,145.35,145.26,1.3744]
[1728396187619,6.44,145.35,145.27,6.44]
[1728396187820,6.56502,145.37,145.27,6.44]
[1728396188038,10.00572,145.37,145.34,3.4413]
[1728396188219,6.56502,145.37,145.34,3.4413]
[1728396188423,6.56502,145.37,145.27,6.44]
[1728396188620,10.00582,145.37,145.34,3.4412]
[1728396188818,6.56502,145.37,145.27,6.44]
[1728396189123,3.56572,145.37,145.34,3.4412]
[1728396189317,0.12502,145.37,145.28,26.39]
[1728396189832,26.39,145.36,145.26,1.3744]
[1728396190122,26.39,145.34,145.26,1.3744]
[1728396190327,32.83,145.34,145.26,1.3744]
[1728396190517,6.44,145.34,145.26,1.3744]
[1728396190718,0.12502,145.37,145.26,27.7644]
[1728396190921,6.34502,145.37,145.26,27.7644]
[1728396191227,3.441,145.36,145.33,3.4415]
[1728396191424,6.34502,145.37,145.26,27.7644]
[1728396191727,9.78582,145.37,145.29,3.4425]
[1728396192029,6.34502,145.37,145.26,33.9844]
[1728396192230,6.34502,145.37,145.26,7.5944]
[1728396192530,6.34502,145.37,145.25,0.12502]
[1728396192531,26.39,145.35,145.25,0.12502]
[1728396192730,1.3555,145.34,145.25,0.12502]
[1728396193133,1.0,145.36,145.26,6.8865]
[1728396193423,4.4411,145.36,145.32,3.4417]
[1728396193822,1.0,145.36,145.32,3.4417]
[1728396194329,1.0,145.36,145.27,7.6054]
[1728396194730,3.4413,145.35,145.27,7.6054]
[1728396194927,1.0,145.36,145.25,0.12502]
[1728396195127,26.39,145.34,145.25,6.34502]
[1728396195327,6.22,145.33,145.25,0.12502]
[1728396195728,8.9426,145.33,145.25,0.12502]
[1728396196132,7.5765,145.33,145.25,0.12502]
[1728396196328,6.22,145.33,145.25,0.12502]
[1728396196726,9.6618,145.33,145.25,0.12502]
[1728396196922,1.0,145.36,145.26,33.2764]
[1728396197226,1.0,145.36,145.34,3.4412]
[1728396197426,1.0,145.36,145.28,6.22]
[1728396197632,4.441,145.36,145.33,3.4415]
[1728396198529,1.0,145.36,145.28,6.22]
[1728396199440,0.12502,145.37,145.29,2.6333]
[1728396199639,3.4413,145.35,145.32,3.4417]
[1728396200028,0.12502,145.37,145.29,2.6333]
[1728396200225,3.441,145.36,145.31,3.442]
[1728396200438,3.441,145.36,145.29,2.6333]
[1728396200738,3.441,145.36,145.29,8.8533]
[1728396200928,3.441,145.36,145.33,3.4415]
[1728396201442,6.34502,145.37,145.29,8.8533]
[1728396202123,6.34502,145.37,145.36,3.4409]
[1728396202124,0.12502,145.37,145.36,3.4409]
[1728396205426,0.12502,145.37,145.35,3.4411]
[1728396205623,0.12502,145.37,145.3,1.3541]
[1728396205827,3.4415,145.34,145.25,13.23202]
[1728396206027,27.7524,145.36,145.32,3.4416]
[1728396206323,3.4413,145.35,145.25,16.08052]
[1728396206525,27.7524,145.36,145.28,3.4427]
[1728396206729,6.22,145.35,145.25,9.86052]
[1728396207034,6.22,145.35,145.25,1.53832]
[1728396207035,3.4422,145.31,145.25,1.53832]
[1728396207221,3.4422,145.31,145.26,3.4431]
[1728396207421,3.4422,145.31,145.25,1.53832]
[1728396207630,3.4428,145.28,145.25,0.12502]
[1728396207826,32.61,145.31,145.26,3.4431]
[1728396208128,3.4426,145.29,145.26,3.4431]
[1728396208321,3.4426,145.29,145.25,3.56842]
[1728396208525,36.04827263,145.31,145.25,0.12502]
[1728396208739,3.4428,145.28,145.25,0.12502]
[1728396208936,26.39,145.29,145.25,0.12502]
[1728396209235,3.4433,145.26,145.25,0.12502]
[1728396209531,26.39,145.27,145.16,1.4441]
[1728396209731,26.39,145.21,145.14,6.22]
[1728396209931,35.43,145.26,145.14,6.22]
[1728396210141,29.21,145.26,145.15,26.39]
[1728396210331,7.22,145.25,145.15,26.39]
[1728396210533,1.0,145.25,145.24,3.4437]
[1728396210733,2.82,145.26,145.18,6.22]
[1728396211132,2.82,145.26,145.23,3.4438]
[1728396211334,2.82,145.26,145.18,6.22]
[1728396211632,1.3379,145.28,145.22,3.444]
[1728396211831,1.4317,145.27,145.18,6.22]
[1728396212044,6.22,145.26,145.17,34.038]
[1728396212233,1.3379,145.28,145.17,1.428]
[1728396212538,6.85385012,145.3,145.2,32.61]
[1728396212747,6.85385012,145.3,145.23,3.4439]
[1728396212748,26.39,145.27,145.23,3.4439]
[1728396212939,32.61,145.27,145.23,3.4439]
[1728396213240,3.4433,145.26,145.17,7.648]
[1728396213441,32.61,145.27,145.17,7.648]
[1728396213629,6.22,145.27,145.17,34.038]
[1728396214028,6.22,145.27,145.17,1.428]
[1728396214431,26.39,145.25,145.16,7.6641]
[1728396214640,26.39,145.25,145.13,27.94292]
[1728396214839,1.3378,145.24,145.15,6.22]
[1728396215035,6.22,145.23,145.22,3.444]
[1728396215238,9.6641,145.23,145.15,6.22]
[1728396215438,7.662,145.23,145.14,6.22]
[1728396215944,7.662,145.23,145.2,3.4445]
[1728396216141,7.662,145.23,145.14,6.22]
[1728396216643,7.662,145.23,145.18,3.4451]
[1728396216644,34.052,145.23,145.18,3.4451]
[1728396216944,4.8075,145.22,145.18,3.4451]
[1728396217149,1.3631,145.22,145.13,0.12502]
[1728396217342,26.39,145.21,145.13,0.12502]
[1728396217645,1.3631,145.22,145.13,0.12502]
[1728396217646,3.4458,145.16,145.13,0.12502]
[1728396217844,26.39,145.15,145.07,0.12502]
[1728396218030,27.832,145.15,145.07,0.12502]
[1728396218229,27.832,145.15,145.08,3.4473]
[1728396218230,3.4464,145.13,145.08,3.4473]
[1728396218442,3.4464,145.13,145.07,0.12502]
[1728396218846,3.4464,145.13,145.09,3.4471]
[1728396219039,6.24,145.12,145.09,3.4471]
[1728396219234,6.24,145.12,145.07,0.12502]
[1728396219645,26.39,145.11,145.07,0.12502]
[1728396220140,1.0,145.11,145.07,0.12502]
[1728396220532,3.4475,145.09,145.07,0.12502]
[1728396220746,6.42,145.08,145.07,0.12502]
[1728396221041,9.8675,145.08,145.07,0.12502]
[1728396221240,6.42,145.08,145.01,0.12502]
[1728396221445,6.42,145.08,145.02,3.4488]
[1728396221446,26.39,145.07,145.02,3.4488]
[1728396221744,26.39,145.07,145.01,0.12502]
[1728396221947,26.39,145.07,145.02,3.4488]
[1728396222150,20.0,145.03,145.01,0.12502]
[1728396222351,20.0,145.03,144.95,26.51502]
[1728396222352,1.3974,145.06,144.95,0.12502]
[1728396222643,1.0,145.06,145.0,26.39]
[1728396223149,0.12502,145.07,145.0,26.39]
[1728396225646,0.12502,145.07,145.05,3.448]
[1728396225853,0.12502,145.07,145.0,26.39]
[1728396226243,0.12502,145.07,145.06,3.448]
[1728396226453,6.42,145.12,145.06,3.448]
[1728396226752,6.42,145.12,145.09,3.4472]
[1728396226953,6.42,145.12,145.03,9.1354]
[1728396227454,9.8668,145.12,145.03,9.1354]
[1728396227654,6.42,145.12,145.03,9.1354]
[1728396228156,26.39,145.11,145.03,1.3153]
[1728396228356,27.7668,145.11,145.01,1.45342]
[1728396228556,3.4478,145.07,145.03,3.4487]
[1728396228948,3.4481,145.06,145.02,3.4489]
[1728396229242,9.86753884,145.08,145.01,0.12502]
[1728396229440,3.4482,145.06,145.01,0.12502]
[1728396229645,27.7614,145.07,145.01,0.12502]
[1728396230049,3.4484,145.05,145.01,3.57422]
[1728396230257,27.7614,145.07,145.01,0.12502]
[1728396230442,26.39,145.04,145.01,0.12502]
[1728396230647,3.449,145.02,145.01,0.12502]
[1728396230857,6.42,145.03,144.97,3.45]
[1728396231155,6.42,145.03,144.95,0.12502]
[1728396232149,6.42,145.03,145.02,3.449]
[1728396232351,31.33432,145.07,144.97,6.42]
[1728396232352,6.42,145.06,144.97,6.42]
[1728396233356,6.42,145.06,144.97,7.726]
[1728396233961,6.42,145.06,145.03,3.4486]
[1728396234148,6.42,145.06,144.97,7.726]
[1728396234348,6.42,145.06,145.01,3.449]
[1728396234349,32.81,145.06,145.01,3.449]
[1728396234663,32.81,145.06,144.97,7.726]
[1728396234861,32.81,145.06,145.01,3.4491]
[1728396235047,32.81,145.06,144.97,7.726]
[1728396235949,3.4484,145.05,144.99,3.4496]
[1728396236156,3.4484,145.05,144.97,7.726]
[1728396236356,3.4484,145.05,144.97,6.42]
[1728396236659,3.4484,145.05,144.95,0.12502]
[1728396236660,3.4484,145.05,145.01,3.4491]
[1728396236856,3.4486,145.04,144.95,0.12502]
[1728396237157,3.4486,145.04,145.0,3.4493]
[1728396237556,26.39,145.04,144.95,0.12502]
[1728396237755,26.39,145.02,144.95,0.12502]
[1728396238063,2.81242,145.07,144.95,0.12502]
[1728396238064,26.39,144.99,144.95,0.12502]
[1728396238751,29.8398,144.99,144.95,3.57552]
[1728396239259,29.8398,144.99,144.96,3.4504]
[1728396239557,26.39,145.04,144.95,0.12502]
[1728396239754,6.42,145.02,144.97,3.4501]
[1728396239959,6.42,145.02,144.95,0.12502]
[1728396240956,26.39,145.04,144.95,0.12502]
[1728396241254,6.42,145.03,144.95,0.12502]
[1728396241656,6.42,145.03,144.95,6.54502]
[1728396241859,6.42,145.05,145.04,3.4484]
[1728396242754,6.42,145.05,144.96,27.711]
[1728396243659,6.42,145.05,144.96,1.321]
[1728396243865,9.8684,145.05,145.01,3.449]
[1728396244157,6.42,145.05,144.96,1.321]
[1728396244660,32.81,145.05,144.95,6.54502]
[1728396245455,3.4486,145.04,145.0,3.4493]
[1728396246464,3.4488,145.03,145.0,3.4493]
[1728396246658,3.4488,145.03,144.99,3.4495]
[1728396246857,3.4488,145.03,144.95,0.12502]
[1728396247059,32.81,145.05,144.97,3.4501]
[1728396247261,3.4488,145.03,144.95,0.12502]
[1728396247762,3.4488,145.03,144.99,3.4495]
[1728396249761,3.4493,145.01,144.98,3.4498]
[1728396250069,9.8693,145.01,144.98,3.4498]
[1728396250370,78.0721367,145.07,144.95,0.12502]
[1728396250371,3.4486,145.04,145.0,3.4494]
[1728396250561,6.42,145.05,144.96,6.9007]
[1728396250762,0.12502,145.07,144.97,26.39]
[1728396251062,0.12502,145.07,145.06,3.448]
[1728396251772,6.54502,145.13,145.04,26.39]
[1728396251773,0.12502,145.13,145.05,6.42]
[1728396252072,0.12502,145.13,145.12,3.4466]
[1728396252265,0.12502,145.13,145.05,6.42]
[1728396252474,0.12502,145.13,145.12,3.4466]
[1728396252673,0.12502,145.19,145.11,26.39]
[1728396252872,0.12502,145.19,145.13,3.4462]
[1728396253171,0.12502,145.19,145.11,26.39]
[1728396253564,0.12502,145.19,145.18,3.4452]
[1728396253973,0.12502,145.25,145.23,3.4438]
[1728396254167,0.12502,145.25,145.16,26.39]
[1728396254564,0.12502,145.25,145.18,3.445]
[1728396254765,0.12502,145.25,145.19,6.4]
[1728396255266,0.12502,145.25,145.24,3.4437]
[1728396255570,0.12502,145.25,145.16,26.39]
[1728396255778,0.12502,145.25,145.14,27.7442]
[1728396256075,32.79,145.24,145.15,6.4]
[1728396256462,52.8439,145.24,145.19,3.4449]
[1728396256661,52.8439,145.24,145.15,6.4]
[1728396256865,52.8439,145.24,145.17,3.4452]
[1728396257070,49.4,145.24,145.15,6.4]
[1728396257978,49.4,145.24,145.17,3.4454]
[1728396258174,3.444,145.23,145.14,6.4]
[1728396258385,49.4,145.24,145.14,6.4]
[1728396259073,49.4,145.24,145.17,3.4454]
[1728396259380,46.4444,145.22,145.14,6.4]
[1728396259575,49.4,145.24,145.2,3.4445]
[1728396260077,6.4,145.24,145.14,49.4]
[1728396260281,0.12502,145.25,145.17,43.0]
[1728396260471,0.12502,145.25,145.18,6.4]
[1728396260667,0.12502,145.25,145.22,3.4441]
[1728396260870,0.12502,145.25,145.18,6.4]
[1728396261280,0.12502,145.25,145.22,3.4441]
[1728396261580,43.0,145.24,145.15,6.4]
[1728396261873,0.12502,145.25,145.15,6.4]
[1728396262580,0.12502,145.25,145.22,3.4441]
[1728396263276,0.12502,145.25,145.15,6.4]
[1728396263782,0.12502,145.25,145.16,43.0]
[1728396264688,0.12502,145.25,145.15,6.4]
[1728396264867,0.12502,145.25,145.16,6.4]
[1728396265068,3.4439,145.24,145.18,3.445]
[1728396265269,0.12502,145.25,145.16,6.4]
[1728396266273,3.4443,145.22,145.18,3.4451]
[1728396266580,3.4443,145.22,145.13,0.12502]
[1728396266581,6.4,145.23,145.13,0.12502]
[1728396266783,3.4444,145.22,145.14,6.4]
[1728396266979,43.0,145.22,145.14,6.4]
[1728396267286,3.4453,145.18,145.14,3.4459]
[1728396267486,6.4,145.19,145.14,3.4459]
[1728396267780,6.4,145.19,145.13,0.12502]
[1728396267984,43.0,145.17,145.13,0.12502]
[1728396268280,7.8456,145.19,145.13,0.12502]
[1728396268982,7.8456,145.19,145.18,3.4452]
[1728396268983,6.4,145.19,145.18,3.4452]
[1728396269174,11.2776,145.21,145.13,0.12502]
[1728396269375,7.833,145.21,145.13,6.52502]
[1728396269884,3.4448,145.2,145.16,3.4455]
[1728396270184,43.0,145.2,145.13,6.52502]
[1728396270386,3.4452,145.18,145.15,3.4457]
[1728396270577,43.0,145.2,145.13,6.52502]
[1728396270777,43.0,145.2,145.15,3.4458]
[1728396270980,43.0,145.2,145.13,0.12502]
[1728396271984,7.833,145.21,145.17,3.4452]
[1728396272193,7.833,145.21,145.13,0.12502]
[1728396272386,1.433,145.21,145.13,6.52502]
[1728396272689,1.433,145.21,145.19,3.4448]
[1728396273085,7.4,145.22,145.2,3.4445]
[1728396273984,7.4,145.22,145.13,6.52502]
[1728396274180,50.4,145.22,145.13,6.52502]
[1728396274685,3.4447,145.2,145.17,3.4453]
[1728396274985,50.4,145.22,145.13,6.52502]
[1728396275484,2.87162,145.25,145.14,43.0]
[1728396275692,2.87162,145.25,145.16,43.0]
[1728396275889,0.12502,145.25,145.24,3.4437]
[1728396276199,0.12502,145.25,145.17,7.7881]
[1728396276781,0.12502,145.25,145.23,3.4439]
[1728396276986,0.12502,145.25,145.17,7.7881]
[1728396278195,43.0,145.24,145.13,0.12502]
[1728396278384,43.0,145.24,145.14,6.4]
[1728396278591,3.444,145.23,145.14,6.4]
[1728396278794,43.0,145.24,145.14,6.4]
[1728396279391,0.12502,145.25,145.14,6.4]
[1728396279713,3.4441,145.23,145.19,3.4447]
[1728396279901,0.12502,145.25,145.14,6.4]
[1728396280794,3.4441,145.23,145.19,3.4448]
[1728396280990,0.12502,145.25,145.14,6.4]
[1728396281592,0.12502,145.25,145.23,3.4439]
[1728396281899,0.12502,145.25,145.15,43.0]
[1728396281900,0.12502,145.25,145.18,6.36]
[1728396283501,0.12502,145.25,145.24,3.4437]
[1728396285397,0.12502,145.25,145.2,2.6658]
[1728396285595,0.12502,145.25,145.2,6.36]
[1728396286101,0.12502,145.25,145.24,3.4437]
[1728396287295,0.12502,145.25,145.17,4.0461]
[1728396287496,0.12502,145.25,145.21,3.4443]
[1728396287903,0.12502,145.25,145.18,6.36]
[1728396288097,0.12502,145.25,145.22,3.4442]
[1728396288396,0.12502,145.25,145.17,4.0461]
[1728396288397,42.97,145.24,145.17,10.4061]
[1728396288603,42.97,145.24,145.17,4.0461]
[1728396288900,3.4446,145.21,145.16,6.36]
[1728396289106,42.97,145.22,145.16,6.36]
[1728396290004,46.4143,145.22,145.16,6.36]
[1728396290206,42.97,145.22,145.13,2.87072]
[1728396290404,42.97,145.22,145.14,6.36]
[1728396290596,3.4451,145.19,145.15,3.4457]
[1728396290901,3.53009407,145.23,145.13,0.12502]
[1728396290902,42.97,145.2,145.13,0.12502]
[1728396291095,3.4453,145.18,145.13,0.12502]
[1728396291503,42.97,145.2,145.13,0.12502]
[1728396291504,6.36,145.19,145.13,0.12502]
[1728396291806,7.7977,145.19,145.17,3.4453]
[1728396292006,7.7977,145.19,145.13,0.12502]
[1728396292204,6.36,145.19,145.17,3.4454]
[1728396292701,6.36,145.19,145.13,0.12502]
[1728396292907,6.36,145.19,145.16,3.4455]
[1728396293203,42.97,145.22,145.13,0.12502]
[1728396293404,6.36,145.21,145.18,3.445]
[1728396294298,9.8045,145.21,145.18,3.445]
[1728396295103,3.4447,145.2,145.17,3.4453]
[1728396295607,6.36,145.21,145.19,3.4448]
[1728396295904,6.36,145.21,145.13,0.12502]
[1728396296992,6.36,145.23,145.13,43.09502]
[1728396297699,9.73073334,145.23,145.13,43.09502]
[1728396297907,3.4446,145.21,145.18,3.445]
[1728396298107,6.36,145.23,145.18,3.445]
[1728396298307,6.36,145.23,145.13,43.09502]
[1728396298501,6.36,145.23,145.19,3.4448]
[1728396298698,42.97,145.22,145.13,0.12502]
[1728396298899,3.4448,145.2,145.16,3.4454]
[1728396299105,42.97,145.22,145.13,0.12502]
[1728396299616,42.97,145.2,145.15,3.4457]
[1728396299910,6.36,145.19,145.15,3.4457]
[1728396300301,6.36,145.19,145.13,0.12502]
[1728396300502,6.36,145.19,145.16,3.4455]
[1728396300809,6.36,145.19,145.13,0.12502]
[1728396301205,52.1426,145.24,145.13,43.09502]
[1728396301400,55.5864,145.24,145.13,43.09502]
[1728396301603,52.1426,145.24,145.13,43.09502]
[1728396301908,3.4852362,145.23,145.13,0.12502]
[1728396302106,42.97,145.22,145.13,6.48502]
[1728396302311,46.49313418,145.22,145.13,6.48502]
[1728396302504,3.4451,145.19,145.13,6.48502]
[1728396302702,6.36,145.2,145.13,0.12502]
[1728396302907,49.33,145.2,145.13,0.12502]
[1728396303108,49.33,145.2,145.14,3.4459]
[1728396303309,49.33,145.2,145.13,0.12502]
[1728396303507,3.446,145.15,145.13,0.12502]
[1728396303714,42.97,145.15,145.13,0.12502]
[1728396304017,42.97,145.15,145.07,0.12502]
[1728396304018,3.4468,145.12,145.07,0.12502]
[1728396304716,3.4464,145.13,145.07,0.12502]
[1728396304905,6.36,145.16,145.07,0.12502]
[1728396305107,9.028,145.17,145.13,3.4463]
[1728396305413,12.4735,145.17,145.13,3.4463]
[1728396305708,12.4735,145.17,145.14,3.4461]
[1728396306212,6.36,145.17,145.15,3.4458]
[1728396306911,6.36,145.17,145.16,3.4456]
[1728396307509,3.4457,145.16,145.13,3.4463]
[1728396307718,32.82,145.17,145.07,0.12502]
[1728396307902,32.82,145.17,145.07,6.50502]
[1728396308106,3.446,145.15,145.12,3.4464]
[1728396308307,26.46,145.14,145.07,0.12502]
[1728396308512,3.4467,145.12,145.09,3.4472]
[1728396308706,26.46,145.12,145.07,0.12502]
[1728396309114,29.9067,145.12,145.09,3.4471]
[1728396309303,26.46,145.12,145.07,0.12502]
[1728396310015,1.4325,145.11,145.07,0.12502]
[1728396310415,26.46,145.1,145.07,0.12502]
[1728396310606,6.24,145.09,145.01,0.12502]
[1728396310812,3.4478,145.07,145.03,3.4486]
[1728396311014,3.4478,145.07,145.01,0.12502]
[1728396311513,3.4482,145.06,145.01,0.12502]
[1728396311906,3.4482,145.06,145.02,3.4488]
[1728396312416,3.4482,145.06,145.01,0.12502]
[1728396312417,26.46,145.07,145.01,0.12502]
[1728396312604,1.3925,145.06,145.01,0.12502]
[1728396312808,3.4488,145.03,145.01,0.12502]
[1728396313012,32.7,145.05,145.01,0.12502]
[1728396314023,6.24,145.05,145.03,3.4486]
[1728396314207,6.24,145.05,145.01,0.12502]
[1728396314814,32.7,145.05,145.01,0.12502]
[1728396315011,3.449,145.02,145.01,0.12502]
[1728396315211,32.7,145.05,145.01,0.12502]
[1728396315419,36.1483,145.05,145.01,0.12502]
[1728396315820,32.7,145.05,145.01,0.12502]
[1728396316222,32.7,145.05,145.01,3.57402]
[1728396316415,26.46,145.03,144.95,0.12502]
[1728396316916,1.4021,145.04,145.01,3.449]
[1728396317117,1.4021,145.04,144.95,0.12502]
[1728396317118,26.46,145.03,144.95,0.12502]
[1728396317624,26.46,145.01,144.95,0.12502]
[1728396317811,26.46,144.98,144.95,0.12502]
[1728396318015,32.7,144.98,144.95,0.12502]
[1728396318410,32.7,144.98,144.89,0.12502]
[1728396318609,3.451,144.94,144.91,3.4515]
[1728396318818,26.46,144.96,144.89,0.12502]
[1728396319320,26.46,144.96,144.91,3.4516]
[1728396319518,26.46,144.96,144.89,0.12502]
[1728396319719,3.4504,144.96,144.91,3.4514]
[1728396319915,3.4504,144.96,144.89,0.12502]
[1728396319916,26.46,144.98,144.89,0.12502]
[1728396320126,1.0,144.97,144.89,0.12502]
[1728396320322,3.4504,144.96,144.92,3.4513]
[1728396320721,1.0,144.97,144.92,3.4513]
[1728396321818,3.4508,144.95,144.92,3.4513]
[1728396322016,1.0,144.97,144.89,0.12502]
[1728396322017,1.0,144.97,144.91,32.7]
[1728396322213,26.46,144.99,144.91,6.24]
[1728396322423,3.4502,144.97,144.91,6.24]
[1728396322928,3.4502,144.97,144.89,0.12502]
[1728396322929,3.4506,144.95,144.89,0.12502]
[1728396323134,3.52882652,144.98,144.89,6.36502]
[1728396323426,26.46,144.96,144.91,3.4515]
[1728396323619,6.24,144.95,144.91,3.4515]
[1728396323821,9.0159,144.95,144.89,0.12502]
[1728396324024,26.46,144.94,144.89,0.12502]
[1728396324236,3.4512,144.93,144.89,0.12502]
[1728396324521,26.46,144.94,144.89,0.12502]
[1728396324917,29.911,144.94,144.9,3.4516]
[1728396325118,9.0159,144.95,144.89,0.12502]
[1728396325720,6.24,144.98,144.89,26.58502]
[1728396326027,1.3184,144.99,144.89,0.12502]
[1728396326225,7.5584,144.99,144.89,29.43662]
[1728396326729,1.3184,144.99,144.89,29.43662]
[1728396326931,6.24,144.98,144.89,29.43662]
[1728396327621,6.24,144.98,144.96,3.4503]
[1728396328123,6.24,144.98,144.91,3.4514]
[1728396328323,1.3184,144.99,144.92,6.24]
[1728396329021,26.46,144.98,144.89,2.97662]
[1728396329223,1.3184,144.99,144.89,9.21662]
[1728396329536,4.7682,144.99,144.95,3.4504]
[1728396329822,4.7682,144.99,144.89,9.21662]
[1728396329823,1.3184,144.99,144.89,9.21662]
[1728396330126,27.7784,144.99,144.92,3.4513]
[1728396330425,3.47603387,144.98,144.92,3.4513]
[1728396330629,26.46,144.96,144.89,0.12502]
[1728396331119,3.4508,144.95,144.91,3.4514]
[1728396331320,26.46,144.96,144.89,0.12502]